bitfinex/quotes_SOLUSD_20241226
["timestamp","ask_amount","ask_price","bid_price","bid_amount"]
[1735171808730,2.12694343,199.08,199.0,0.7534925]
[1735171809041,10.86514661,199.08,198.98,0.75349725]
[1735171809330,10.86514661,199.08,199.01,8.73820318]
[1735171809534,23.776884,199.07,199.01,8.73820318]
[1735171809832,23.776884,199.07,199.02,8.73820318]
[1735171810034,23.776884,199.07,199.03,8.73820318]
[1735171810229,2.12694343,199.08,199.05,8.73820318]
[1735171811527,2.12694343,199.08,199.0,0.75351219]
[1735171811751,2.12694343,199.08,199.04,8.73820318]
[1735171811913,2.12694343,199.08,199.05,8.73820318]
[1735171812411,2.12694343,199.08,198.99,0.75356081]
[1735171812726,2.12694343,199.08,199.02,8.73820318]
[1735171813621,2.12694343,199.08,199.03,8.73820318]
[1735171814403,2.12694343,199.08,199.04,8.73820318]
[1735171814907,2.12694343,199.08,199.03,8.73820318]
[1735171815107,2.12694343,199.08,199.07,8.73820318]
[1735171815330,2.12694343,199.08,198.99,34.95281272]
[1735171815497,2.12694343,199.08,199.05,8.73820318]
[1735171815703,2.12694343,199.08,198.99,20.0]
[1735171815937,2.12694343,199.08,199.04,8.73820318]
[1735171816125,2.12694343,199.08,199.05,8.73820318]
[1735171816604,2.12694343,199.08,198.99,54.95281272]
[1735171816804,2.12694343,199.08,199.04,8.73820318]
[1735171817305,2.12694343,199.08,199.05,8.73820318]
[1735171818699,2.12694343,199.08,198.99,54.95281272]
[1735171818902,2.12694343,199.08,199.05,8.73820318]
[1735171819730,23.902374,199.07,198.96,15.3394176]
[1735171819935,32.64057718,199.07,199.0,8.73820318]
[1735171821013,23.902374,199.05,198.96,15.3394176]
[1735171821319,23.902374,199.05,199.0,8.73820318]
[1735171821707,23.902374,199.05,198.99,8.73820318]
[1735171822435,23.902374,199.05,198.93,5.03993963]
[1735171822731,23.902374,199.05,199.04,8.73820318]
[1735171823432,23.776884,199.07,199.04,8.73820318]
[1735171823735,23.776884,199.07,199.05,8.73820318]
[1735171823922,0.12549,199.06,199.04,8.73820318]
[1735171824727,0.12549,199.06,198.97,20.0]
[1735171825111,0.12549,199.04,199.03,8.73820318]
[1735171825634,0.12549,199.04,198.96,20.0]
[1735171825821,0.12549,199.04,199.02,8.73820318]
[1735171827733,0.12549,199.02,198.93,18.65941949]
[1735171827932,23.902374,198.98,198.92,8.73820318]
[1735171828251,23.902374,198.96,198.9,13.65990058]
[1735171828437,15.24670058,198.97,198.79,0.75408187]
[1735171828438,30.107574,198.94,198.79,0.75408187]
[1735171828945,0.12549,198.92,198.86,13.65990058]
[1735171829155,0.12549,198.91,198.88,13.65990058]
[1735171829313,0.12549,198.93,198.9,13.65990058]
[1735171829511,0.12549,198.93,198.89,13.65990058]
[1735171830023,0.12549,198.93,198.88,13.65990058]
[1735171830204,0.12549,198.93,198.87,13.65990058]
[1735171830528,1.71229,198.89,198.84,13.65990058]
[1735171830919,1.71229,198.89,198.83,13.65990058]
[1735171832016,1.71229,198.89,198.84,13.65990058]
[1735171832217,1.71229,198.89,198.83,13.65990058]
[1735171832809,15.37219058,198.89,198.83,13.65990058]
[1735171833013,15.37219058,198.89,198.7,12.5812]
[1735171833014,37.56227458,198.85,198.79,13.65990058]
[1735171833233,13.78539058,198.83,198.77,13.65990058]
[1735171833430,0.12549,198.81,198.76,13.65990058]
[1735171833809,1.5868,198.8,198.75,13.65990058]
[1735171834010,23.902374,198.79,198.75,13.65990058]
[1735171834623,15.24670058,198.8,198.74,13.65990058]
[1735171834829,23.776884,198.79,198.74,13.65990058]
[1735171835707,1.5868,198.8,198.78,13.65990058]
[1735171835930,1.5806,198.85,198.79,13.65990058]
[1735171836145,0.12549,198.83,198.79,13.65990058]
[1735171836517,1.5806,198.85,198.79,13.65990058]
[1735171836725,1.5806,198.85,198.8,13.65990058]
[1735171836914,1.5806,198.85,198.81,13.65990058]
[1735171837115,1.5806,198.85,198.8,13.65990058]
[1735171837316,0.12549,198.84,198.79,13.65990058]
[1735171837531,0.12549,198.84,198.78,13.65990058]
[1735171837734,13.78539058,198.84,198.77,13.65990058]
[1735171838537,15.24050058,198.85,198.79,13.65990058]
[1735171838741,1.5806,198.85,198.8,13.65990058]
[1735171839244,0.12549,198.84,198.79,13.65990058]
[1735171839434,23.902374,198.84,198.8,13.65990058]
[1735171839625,23.902374,198.84,198.78,13.65990058]
[1735171840840,23.776884,198.84,198.78,13.65990058]
[1735171841021,1.5806,198.85,198.79,13.65990058]
[1735171841542,1.5806,198.85,198.8,13.65990058]
[1735171841770,23.776884,198.88,198.83,13.65990058]
[1735171842038,1.5806,198.89,198.85,13.65990058]
[1735171842242,1.5806,198.89,198.84,13.65990058]
[1735171842630,1.5806,198.89,198.83,13.65990058]
[1735171843631,1.5806,198.89,198.84,13.65990058]
[1735171845751,0.12549,198.88,198.84,13.65990058]
[1735171846046,0.12549,198.88,198.82,13.65990058]
[1735171846254,0.12549,198.88,198.83,13.65990058]
[1735171847049,0.12549,198.86,198.8,13.65990058]
[1735171847356,0.12549,198.84,198.78,13.65990058]
[1735171847526,0.12549,198.84,198.73,0.75450396]
[1735171847527,13.78539058,198.84,198.77,13.65990058]
[1735171848239,13.65990058,198.85,198.79,13.65990058]
[1735171848446,13.65990058,198.85,198.78,13.65990058]
[1735171849951,23.902374,198.84,198.78,13.65990058]
[1735171850647,37.56227458,198.84,198.77,13.65990058]
[1735171850956,13.65990058,198.79,198.68,28.54213513]
[1735171851158,13.65990058,198.77,198.71,13.65990058]
[1735171851543,13.65990058,198.77,198.71,13.63579391]
[1735171851949,13.65990058,198.78,198.71,13.63579391]
[1735171852150,23.902374,198.77,198.71,13.63579391]
[1735171852344,0.12549,198.75,198.7,13.65990058]
[1735171852544,13.78539058,198.75,198.69,13.65990058]
[1735171853060,0.12549,198.75,198.7,13.65990058]
[1735171853355,23.776884,198.77,198.72,13.65990058]
[1735171853560,23.776884,198.79,198.74,13.65990058]
[1735171853860,23.776884,198.79,198.73,13.65990058]
[1735171854155,1.5671,198.8,198.77,13.65990058]
[1735171854358,1.5671,198.8,198.78,13.65990058]
[1735171854558,1.5671,198.8,198.76,13.65990058]
[1735171854856,1.5671,198.8,198.75,13.65990058]
[1735171855357,1.5671,198.8,198.76,13.65990058]
[1735171855743,20.0,198.79,198.76,13.65990058]
[1735171855945,20.0,198.79,198.71,0.75462136]
[1735171856147,20.0,198.79,198.76,13.65990058]
[1735171856787,1.5671,198.8,198.76,13.65990058]
[1735171857457,6.1358,198.82,198.76,13.65990058]
[1735171857771,25.1348,198.93,198.79,13.65990058]
[1735171857772,1.5671,198.85,198.79,13.65990058]
[1735171857939,1.5671,198.85,198.81,13.65990058]
[1735171858330,1.5671,198.85,198.8,13.65990058]
[1735171858765,0.12549,198.84,198.78,13.65990058]
[1735171859133,0.12549,198.84,198.79,13.65990058]
[1735171859347,1.5671,198.85,198.8,13.65990058]
[1735171859564,13.65990058,198.91,198.83,13.65990058]
[1735171859780,13.65990058,198.89,198.81,13.65990058]
[1735171859934,13.78539058,198.88,198.81,13.65990058]
[1735171860139,0.12549,198.86,198.8,13.65990058]
[1735171860346,12.5684,198.91,198.82,13.65990058]
[1735171860552,13.65990058,198.89,198.82,13.65990058]
[1735171860758,0.12549,198.86,198.8,13.65990058]
[1735171860967,0.12549,198.85,198.78,13.65990058]
[1735171861360,0.12549,198.85,198.79,13.65990058]
[1735171861571,13.65990058,198.88,198.81,13.65990058]
[1735171861864,13.65990058,198.89,198.82,13.65990058]
[1735171862270,13.65990058,198.9,198.82,13.65990058]
[1735171862453,20.0,198.87,198.82,13.65990058]
[1735171862769,0.12549,198.89,198.82,13.65990058]
[1735171864469,23.902374,198.9,198.84,13.65990058]
[1735171864775,1.5671,198.92,198.87,13.65990058]
[1735171865073,13.65990058,198.96,198.89,13.65990058]
[1735171865249,15.21520058,198.97,198.89,13.65990058]
[1735171865445,1.5553,198.97,198.91,13.65990058]
[1735171867173,15.21520058,198.97,198.91,13.65990058]
[1735171867545,1.5307,199.02,198.94,13.65990058]
[1735171867868,1.5307,199.02,198.97,13.65990058]
[1735171868980,6.5895,199.04,198.98,13.65990058]
[1735171869162,6.5895,199.04,198.99,13.65990058]
[1735171869358,1.5307,199.07,199.03,13.65990058]
[1735171869548,2.12694343,199.08,199.03,13.65990058]
[1735171869755,2.12694343,199.08,199.04,13.65990058]
[1735171870073,2.12694343,199.08,199.03,13.65990058]
[1735171870878,2.12694343,199.08,199.04,13.65990058]
[1735171872344,2.12694343,199.08,199.06,13.65990058]
[1735171872683,2.12694343,199.08,199.07,13.65990058]
[1735171874762,2.12694343,199.08,199.06,13.65990058]
[1735171876185,2.12694343,199.08,199.04,0.75340822]
[1735171876357,2.12694343,199.08,199.02,13.65990058]
[1735171877084,2.12694343,199.08,199.03,13.65990058]
[1735171877402,2.12694343,199.08,199.05,13.65990058]
[1735171878086,2.12694343,199.08,199.04,13.65990058]
[1735171878267,2.12694343,199.08,199.03,13.65990058]
[1735171878466,2.12694343,199.08,199.04,13.65990058]
[1735171878881,2.12694343,199.08,199.05,13.65990058]
[1735171879652,2.12694343,199.08,199.04,13.65990058]
[1735171879858,2.12694343,199.08,199.05,13.65990058]
[1735171880557,2.12694343,199.08,199.04,13.65990058]
[1735171880765,2.12694343,199.08,199.03,13.65990058]
[1735171880964,2.12694343,199.08,199.02,13.65990058]
[1735171882080,2.12694343,199.08,199.03,13.65990058]
[1735171883291,2.12694343,199.08,198.99,30.75353762]
[1735171883292,2.12694343,199.08,199.04,13.65990058]
[1735171883458,2.12694343,199.08,199.05,13.65990058]
[1735171883978,2.12694343,199.08,198.99,44.4134382]
[1735171883979,2.12694343,199.08,199.06,13.65990058]
[1735171884487,2.12694343,199.08,199.05,13.65990058]
[1735171886811,2.12694343,199.08,199.06,13.65990058]
[1735171887883,2.12694343,199.08,199.02,0.75337111]
[1735171888093,2.12694343,199.08,199.07,13.65990058]
[1735171888894,2.12694343,199.08,199.06,13.65990058]
[1735171889189,2.12694343,199.08,199.05,13.65990058]
[1735171889964,2.12694343,199.08,199.06,13.65990058]
[1735171890288,2.12694343,199.08,199.07,13.65990058]
[1735171897997,2.12694343,199.08,199.04,0.75328913]
[1735171897998,2.12694343,199.08,199.03,13.65990058]
[1735171898601,2.12694343,199.08,199.04,13.65990058]
[1735171898805,2.12694343,199.08,199.05,13.65990058]
[1735171899802,2.12694343,199.08,199.04,13.65990058]
[1735171900479,2.12694343,199.08,199.05,13.65990058]
[1735171900684,2.12694343,199.08,199.07,13.65990058]
[1735171902911,2.12694343,199.08,199.01,0.75344984]
[1735171903204,13.65990058,199.07,199.01,13.65990058]
[1735171904108,13.65990058,199.06,198.99,13.65990058]
[1735171905913,13.65990058,199.06,199.0,13.65990058]
[1735171906097,37.56227458,199.07,199.0,13.65990058]
[1735171906797,37.56227458,199.07,199.01,13.65990058]
[1735171907511,39.57317494,199.07,199.0,13.65990058]
[1735171907714,3.77794343,199.08,199.02,13.65990058]
[1735171907898,3.77794343,199.08,199.03,13.65990058]
[1735171908915,3.77794343,199.08,199.02,13.65990058]
[1735171909601,13.65990058,199.06,199.0,13.65990058]
[1735171910217,13.65990058,199.05,198.99,13.65990058]
[1735171910420,13.65990058,199.05,198.98,13.65990058]
[1735171911895,13.65990058,199.04,198.98,13.65990058]
[1735171912814,13.65990058,199.05,198.98,13.65990058]
[1735171913120,23.776884,199.07,199.01,13.65990058]
[1735171914189,19.48038307,199.08,199.01,13.65990058]
[1735171914611,0.12549,199.07,199.01,13.65990058]
[1735171919229,0.12549,199.07,198.96,0.75363562]
[1735171919420,0.12549,199.07,199.01,13.65990058]
[1735171919823,37.56227458,199.07,199.0,13.65990058]
[1735171920018,0.12549,199.05,198.99,13.65990058]
[1735171920326,0.12549,199.05,199.0,13.65990058]
[1735171921523,13.78539058,199.06,198.99,13.65990058]
[1735171922524,0.12549,199.04,198.98,13.65990058]
[1735171922724,0.12549,198.99,198.94,18.53629533]
[1735171922905,0.12549,198.99,198.93,13.65990058]
[1735171923102,13.65990058,198.98,198.88,0.75397759]
[1735171923416,13.78539058,198.97,198.9,13.65990058]
[1735171923623,0.12549,198.97,198.91,13.65990058]
[1735171923825,23.902374,198.97,198.91,13.65990058]
[1735171924508,50.12697458,198.97,198.9,13.65990058]
[1735171924714,36.467074,198.97,198.89,13.65990058]
[1735171924904,23.902374,198.95,198.89,13.65990058]
[1735171925231,23.902374,198.95,198.86,13.65990058]
[1735171925232,37.43678458,198.93,198.86,13.65990058]
[1735171925410,13.65990058,198.89,198.82,13.65990058]
[1735171925617,13.65990058,198.88,198.81,13.65990058]
[1735171926003,0.12549,198.85,198.79,13.65990058]
[1735171926426,0.12549,198.85,198.75,0.75440185]
[1735171926427,0.12549,198.85,198.8,13.65990058]
[1735171926604,0.12549,198.85,198.75,0.75440185]
[1735171926605,23.776884,198.87,198.81,13.65990058]
[1735171927530,0.12549,198.86,198.8,13.65990058]
[1735171927834,13.65990058,198.91,198.84,13.65990058]
[1735171928022,1.584,198.92,198.87,13.65990058]
[1735171928334,19.0202,198.98,198.83,30.0]
[1735171928505,1.584,198.97,198.84,0.75405374]
[1735171928706,1.584,198.97,198.91,13.65990058]
[1735171929110,15.24390058,198.97,198.9,13.65990058]
[1735171929321,15.24390058,198.97,198.89,13.65990058]
[1735171930027,15.24390058,198.97,198.9,13.65990058]
[1735171930636,13.78539058,198.96,198.89,13.65990058]
[1735171931140,13.65990058,198.93,198.86,13.65990058]
[1735171931309,0.12549,198.9,198.83,13.65990058]
[1735171931636,13.78539058,198.89,198.82,13.65990058]
[1735171931873,15.24390058,198.88,198.81,13.65990058]
[1735171932308,0.12549,198.87,198.81,13.65990058]
[1735171932911,13.78539058,198.87,198.8,13.65990058]
[1735171933835,13.78539058,198.87,198.79,13.65990058]
[1735171934143,13.78539058,198.87,198.8,13.65990058]
[1735171936149,0.12549,198.87,198.81,13.65990058]
[1735171936334,23.902374,198.87,198.81,13.65990058]
[1735171936647,23.902374,198.87,198.8,13.65990058]
[1735171936818,37.56227458,198.87,198.8,13.65990058]
[1735171937220,37.56227458,198.87,198.74,1.5965]
[1735171937221,13.65990058,198.85,198.78,13.65990058]
[1735171937539,0.12549,198.84,198.78,13.65990058]
[1735171938229,0.12549,198.85,198.79,13.65990058]
[1735171938539,23.902374,198.85,198.79,13.65990058]
[1735171938740,0.12549,198.83,198.77,13.65990058]
[1735171938942,0.12549,198.83,198.79,13.65990058]
[1735171939381,13.65990058,198.86,198.79,13.65990058]
[1735171939524,26.23090058,198.87,198.8,13.65990058]
[1735171939725,23.776884,198.86,198.8,13.65990058]
[1735171940651,0.12549,198.85,198.79,13.65990058]
[1735171941653,0.12549,198.85,198.8,13.65990058]
[1735171941857,23.776884,198.86,198.8,13.65990058]
[1735171942060,23.776884,198.86,198.81,13.65990058]
[1735171942357,1.584,198.88,198.83,13.65990058]
[1735171945155,0.12549,198.87,198.83,13.65990058]
[1735171945454,23.902374,198.87,198.82,13.65990058]
[1735171947753,1.584,198.88,198.83,13.65990058]
[1735171947937,23.776884,198.91,198.87,13.65990058]
[1735171949137,0.12549,198.9,198.86,13.65990058]
[1735171949465,23.902374,198.88,198.76,0.75428388]
[1735171949630,23.902374,198.86,198.8,13.65990058]
[1735171950458,0.12549,198.87,198.82,13.65990058]
[1735171950664,0.12549,198.87,198.84,13.65990058]
[1735171950868,0.12549,198.87,198.85,13.65990058]
[1735171951282,15.17680058,198.92,198.85,13.65990058]
[1735171951469,23.776884,198.91,198.85,13.65990058]
[1735171952178,0.12549,198.9,198.85,13.65990058]
[1735171952377,0.12549,198.9,198.84,13.65990058]
[1735171954149,23.776884,198.91,198.86,13.65990058]
[1735171954483,1.5169,198.92,198.88,13.65990058]
[1735171954684,0.12549,198.91,198.89,13.65990058]
[1735171954976,12.5648,198.97,198.84,20.0]
[1735171954977,1.6248,198.98,198.9,13.65990058]
[1735171955150,1.6248,198.98,198.95,13.65990058]
[1735171955778,1.6248,198.98,198.94,13.65990058]
[1735171956977,1.6248,198.98,198.95,13.65990058]
[1735171957382,17.30591859,199.03,198.96,13.65990058]
[1735171957567,3.64601801,199.03,198.97,13.65990058]
[1735171957882,17.41164401,199.08,199.0,13.65990058]
[1735171958085,13.78539058,199.07,199.0,13.65990058]
[1735171958992,13.78539058,199.07,198.99,13.65990058]
[1735171959198,0.12549,199.05,198.99,13.65990058]
[1735171959358,13.65990058,199.04,198.97,13.65990058]
[1735171959562,0.12549,199.03,198.97,13.65990058]
[1735171960690,13.78539058,199.05,198.98,13.65990058]
[1735171961191,0.12549,199.03,198.98,13.65990058]
[1735171962189,0.12549,199.03,198.96,13.65990058]
[1735171962484,13.65990058,199.03,198.95,13.65990058]
[1735171962693,0.12549,199.02,198.97,13.65990058]
[1735171963866,0.12549,199.03,198.97,13.65990058]
[1735171965067,0.12549,199.03,198.98,13.65990058]
[1735171965565,13.78539058,199.03,198.96,13.65990058]
[1735171965762,0.12549,199.03,198.97,13.65990058]
[1735171967392,5.74504722,199.08,198.9,13.65990058]
[1735171967393,23.902374,198.97,198.9,13.65990058]
[1735171967598,0.12549,198.95,198.89,13.65990058]
[1735171968274,23.902374,198.95,198.89,13.65990058]
[1735171968868,0.12549,198.95,198.91,13.65990058]
[1735171969172,23.776884,198.96,198.91,13.65990058]
[1735171969987,0.12549,198.95,198.91,13.65990058]
[1735171970367,13.78539058,198.95,198.88,13.65990058]
[1735171970568,0.12549,198.93,198.88,13.65990058]
[1735171970789,0.12549,198.93,198.87,13.65990058]
[1735171970975,0.12549,198.93,198.84,20.0]
[1735171971173,0.12549,198.93,198.87,13.65990058]
[1735171971374,0.12549,198.93,198.88,13.65990058]
[1735171972595,13.65990058,198.99,198.92,13.65990058]
[1735171972793,20.0,198.99,198.92,13.65990058]
[1735171972973,17.2642969,199.0,198.92,13.65990058]
[1735171973498,0.12549,198.99,198.92,13.65990058]
[1735171973683,0.12549,198.97,198.92,13.65990058]
[1735171974067,0.12549,198.97,198.93,13.65990058]
[1735171974366,0.12549,198.99,198.93,13.65990058]
[1735171974572,23.776884,198.99,198.93,13.65990058]
[1735171974892,0.12549,198.98,198.92,13.65990058]
[1735171975096,0.12549,198.96,198.89,13.65990058]
[1735171975399,0.12549,198.94,198.9,13.65990058]
[1735171975576,23.776884,198.97,198.92,13.65990058]
[1735171976078,0.12549,198.95,198.92,13.65990058]
[1735171976282,20.0,198.96,198.86,0.75402736]
[1735171976283,37.43678458,198.98,198.91,13.65990058]
[1735171976777,0.12549,198.97,198.92,13.65990058]
[1735171978886,0.12549,198.97,198.93,13.65990058]
[1735171981302,1.5937,199.0,198.96,13.65990058]
[1735171981601,0.12549,198.99,198.96,13.65990058]
[1735171981801,0.12549,198.99,198.95,13.65990058]
[1735171982104,0.12549,198.99,198.96,13.65990058]
[1735171982699,23.902374,198.99,198.96,13.65990058]
[1735171982899,1.5937,199.0,198.97,13.65990058]
[1735171983083,27.81200058,199.05,198.98,13.65990058]
[1735171984609,0.12549,199.03,198.98,13.65990058]
[1735171986308,0.12549,199.03,198.9,0.75388375]
[1735171986605,0.12549,199.03,198.97,13.65990058]
[1735171987010,0.12549,199.03,198.98,13.65990058]
[1735171987381,0.12549,199.03,198.97,13.65990058]
[1735171987909,0.12549,199.03,198.98,13.65990058]
[1735171988403,0.12549,199.03,198.9,0.75388375]
[1735171988404,0.12549,199.03,198.99,13.65990058]
[1735171989991,0.12549,199.03,198.97,13.65990058]
[1735171990190,0.12549,199.03,198.98,13.65990058]
[1735171990487,0.12549,199.03,198.99,13.65990058]
[1735171992006,37.56227458,199.01,198.94,13.65990058]
[1735171992204,23.776884,198.97,198.91,13.65990058]
[1735171992505,0.12549,198.96,198.91,13.65990058]
[1735171992813,0.12549,198.94,198.9,13.65990058]
[1735171993508,0.12549,198.94,198.89,13.65990058]
[1735171993705,0.12549,198.94,198.88,13.65990058]
[1735171995211,0.12549,198.94,198.89,13.65990058]
[1735171995993,14.1717,198.97,198.92,13.65990058]
[1735171995994,1.6069,198.97,198.92,13.65990058]
[1735171996491,0.12549,198.96,198.92,13.65990058]
[1735171998087,23.776884,199.0,198.94,13.65990058]
[1735171998916,23.776884,199.0,198.95,13.65990058]
[1735171998917,0.12549,198.99,198.95,13.65990058]
[1735171999302,1.5449,199.02,198.97,13.65990058]
[1735171999698,0.12549,199.01,198.97,13.65990058]
[1735172000594,37.56227458,198.99,198.91,13.65990058]
[1735172000916,23.902374,198.99,198.93,13.65990058]
[1735172001103,23.902374,198.99,198.94,13.65990058]
[1735172001305,1.5449,199.02,198.96,13.65990058]
[1735172001995,0.12549,199.01,198.97,13.65990058]
[1735172002706,0.12549,199.01,198.98,13.65990058]
[1735172005028,0.12549,199.01,198.96,13.65990058]
[1735172007535,0.12549,199.01,198.91,8.4237547]
[1735172007536,0.12549,199.01,198.97,13.65990058]
[1735172007840,0.12549,199.01,198.99,13.65990058]
[1735172008335,0.12549,199.05,198.99,13.65990058]
[1735172008631,23.902374,199.05,198.99,13.65990058]
[1735172010002,23.902374,199.05,199.0,13.65990058]
[1735172010204,1.5449,199.07,199.04,13.65990058]
[1735172010519,12.5567,199.1,199.04,13.65990058]
[1735172011212,1.5449,199.12,199.06,13.65990058]
[1735172011922,0.12549,199.07,199.03,13.65990058]
[1735172012312,0.12549,199.07,199.0,13.65990058]
[1735172012637,37.56227458,199.07,199.0,13.65990058]
[1735172013135,23.902374,199.05,198.99,13.65990058]
[1735172013812,23.902374,199.05,199.0,13.65990058]
[1735172014134,0.12549,199.05,199.01,13.65990058]
[1735172014640,2.12694343,199.08,199.04,13.65990058]
[1735172014810,2.12694343,199.08,199.07,13.65990058]
[1735172015635,2.12694343,199.08,199.06,13.65990058]
[1735172015842,2.12694343,199.08,199.07,13.65990058]
[1735172017941,2.12694343,199.08,198.99,20.0]
[1735172018137,2.12694343,199.08,199.02,13.65990058]
[1735172018316,2.12694343,199.08,199.03,13.65990058]
[1735172018317,0.12549,199.07,199.03,13.65990058]
[1735172018819,0.12549,199.07,199.04,13.65990058]
[1735172021337,23.902374,199.07,199.01,13.65990058]
[1735172025340,15.78684401,199.08,198.95,7.6699]
[1735172025341,2.12694343,199.08,199.06,13.65990058]
[1735172025535,2.12694343,199.08,199.07,13.65990058]
[1735172025840,2.12694343,199.08,199.06,13.65990058]
[1735172026337,2.12694343,199.08,199.04,13.65990058]
[1735172026912,2.12694343,199.08,199.05,13.65990058]
[1735172027135,2.12694343,199.08,199.07,13.65990058]
[1735172030736,2.12694343,199.08,199.06,13.65990058]
[1735172031739,2.12694343,199.08,199.07,13.65990058]
[1735172038854,2.12694343,199.08,199.04,30.75337814]
[1735172039154,2.12694343,199.08,199.07,13.65990058]
[1735172039848,2.12694343,199.08,199.07,325.65990058]
[1735172040555,2.12694343,199.08,199.07,312.0]
[1735172040764,2.12694343,199.08,199.06,13.65990058]
[1735172041146,2.12694343,199.08,199.02,0.75341035]
[1735172041458,2.12694343,199.08,199.07,13.65990058]
[1735172041841,2.12694343,199.08,199.02,0.75341035]
[1735172042041,2.12694343,199.08,199.02,13.65990058]
[1735172042246,15.78684401,199.08,199.01,13.65990058]
[1735172042477,2.12694343,199.08,199.02,13.65990058]
[1735172042640,2.12694343,199.08,199.03,13.65990058]
[1735172044170,0.12549,199.07,199.02,13.65990058]
[1735172044350,0.12549,199.07,199.03,13.65990058]
[1735172044554,13.78539058,199.07,199.0,13.65990058]
[1735172044871,0.12549,199.05,198.99,13.65990058]
[1735172045739,0.12549,199.04,198.97,13.65990058]
[1735172046039,13.78539058,199.04,198.97,13.65990058]
[1735172046549,0.12549,199.02,198.97,13.65990058]
[1735172047960,14.60213069,199.05,198.98,13.65990058]
[1735172048158,15.78684401,199.08,199.01,13.65990058]
[1735172048364,2.12694343,199.08,199.02,13.65990058]
[1735172048669,2.12694343,199.08,199.04,13.65990058]
[1735172049475,2.12694343,199.08,199.03,13.65990058]
[1735172050145,2.12694343,199.08,199.04,13.65990058]
[1735172050965,0.12549,199.07,199.03,13.65990058]
[1735172052364,0.12549,199.07,199.02,13.65990058]
[1735172052962,23.902374,199.07,199.02,13.65990058]
[1735172053265,0.12549,199.05,198.99,13.65990058]
[1735172054361,2.12694343,199.08,199.0,0.75373221]
[1735172054662,2.12694343,199.08,199.07,13.65990058]
[1735172055367,2.12694343,199.08,199.06,13.65990058]
[1735172055551,2.12694343,199.08,199.05,13.65990058]
[1735172055957,2.12694343,199.08,199.06,13.65990058]
[1735172056178,2.12694343,199.08,199.01,20.0]
[1735172056475,2.12694343,199.08,199.04,13.65990058]
[1735172056656,2.12694343,199.08,199.05,13.65990058]
[1735172059173,0.12549,199.07,199.03,13.65990058]
[1735172059346,0.12549,199.07,199.01,13.65990058]
[1735172060759,0.12549,199.07,199.03,13.65990058]
[1735172060960,0.12549,199.07,199.02,13.65990058]
[1735172061976,27.8477,199.06,198.96,0.75358184]
[1735172062180,13.78539058,199.03,198.91,0.75364276]
[1735172062477,13.78539058,199.03,198.95,13.65990058]
[1735172062686,13.78539058,199.03,198.96,13.65990058]
[1735172062977,23.902374,199.03,198.96,13.65990058]
[1735172063277,21.50760058,199.06,198.98,13.65990058]
[1735172063479,7.8477,199.06,199.01,13.65990058]
[1735172064078,0.12549,199.05,199.01,13.65990058]
[1735172065153,2.12694343,199.08,199.04,13.65990058]
[1735172065365,2.12694343,199.08,199.05,13.65990058]
[1735172065548,2.12694343,199.08,199.07,13.65990058]
[1735172069566,2.12694343,199.08,199.05,13.65990058]
[1735172069767,0.12549,199.07,199.04,13.65990058]
[1735172070780,0.12549,199.07,199.03,13.65990058]
[1735172072380,2.12694343,199.08,199.04,13.65990058]
[1735172072967,2.12694343,199.08,199.05,13.65990058]
[1735172074163,2.12694343,199.08,199.07,13.65990058]
[1735172082479,2.12694343,199.08,199.05,13.65990058]
[1735172082887,2.12694343,199.08,199.04,13.65990058]
[1735172083189,2.12694343,199.08,199.05,13.65990058]
[1735172084483,2.12694343,199.08,199.07,13.65990058]
[1735172092992,2.12694343,199.08,199.0,30.75339599]
[1735172093187,2.12694343,199.08,199.05,13.65990058]
[1735172094094,0.12549,199.07,199.03,13.65990058]
[1735172094581,0.12549,199.07,199.02,13.65990058]
[1735172095098,13.65990058,199.06,198.99,13.65990058]
[1735172095297,0.12549,199.04,198.98,13.65990058]
[1735172097308,0.12549,199.04,198.99,13.65990058]
[1735172097905,0.12549,199.06,199.0,13.65990058]
[1735172098389,0.12549,199.06,199.01,13.65990058]
[1735172098773,0.12549,199.06,199.0,13.65990058]
[1735172098972,0.12549,199.06,198.93,0.75374546]
[1735172098973,13.78539058,199.06,198.99,13.65990058]
[1735172099801,0.12549,199.06,199.0,13.65990058]
[1735172102799,13.78539058,199.06,198.99,13.65990058]
[1735172103707,0.12549,199.06,199.0,13.65990058]
[1735172104010,13.78539058,199.06,198.99,13.65990058]
[1735172104179,36.335284,199.07,198.95,13.65990058]
[1735172104180,15.34569058,199.02,198.95,13.65990058]
[1735172104383,20.12549,198.98,198.93,13.65990058]
[1735172104584,0.12549,198.98,198.93,13.65990058]
[1735172104786,0.12549,198.98,198.92,13.65990058]
[1735172105484,26.34979058,198.98,198.91,13.65990058]
[1735172105690,23.902374,198.96,198.9,13.65990058]